{"text_format":"1","workbook":"xlsx","n_sheets":3,"sheets":["Le CBS","Mode d'emploi","Calcul et résultat"],"not_rendered":{"charts":0,"images":3,"macros":1,"external_links":3,"defined_names":19,"comments":2,"pivot_tables":0},"unopened":[],"bounds":{"document_bytes":16777216,"sheet_cells":100000,"rows_first":2000,"rows_last":500,"rows_between":2000,"halvings":0,"cell_chars":16384,"cell_head_chars":4096},"cells_cut":0,"cells_raw":0,"read":"whole","date_system":"1900"}

{"sheet":"Le CBS","index":0,"n_rows":7,"n_cols":2,"rows_kept":7,"cut":false,"hidden":false,"merged":[[1,1,1,7],[3,1,3,7],[5,1,5,7],[6,1,6,7]]}
[]
[null,"CBS - Coefficient de potentiel de Biodiversité par Surface"]
[]
[null,"Le CBS est un indicateur qui qualifie le potentiel d'un site pour le développement de la biodiversité.\n\nIl est calculé en rapportant à la surface de la parcelle la somme des différents types de surfaces pondérées selon leur potentiel pour la biodiversité :"]
[]
[null,"Le CBS varie entre 0 et 1 : plus la valeur est élevée, plus le site est végétalisé."]
[null,"Les onglets suivants explicitent d'une part l'utilisation de l'outil et permettent le calcul du CBS pour un projet d'autre part."]

{"sheet":"Mode d'emploi","index":1,"n_rows":11,"n_cols":4,"rows_kept":11,"cut":false,"hidden":false,"merged":[[10,3,10,7],[8,3,8,7],[1,1,1,7]]}
[]
[null,"CBS - Coefficient de potentiel de Biodiversité par Surface"]
[]
[null,"Mode d'emploi"]
[]
[null,"Texte",null,"Définition en pop-up lorsque l'on passe sur la case"]
[]
[null,null,null,"Case à remplir avec les données du projet étudié"]
[null,null,null,"Le calcul des surfaces pondérées et du CBS se fait automatiquement à partir de ces données"]
[]
[null,null,null,"Permet d'ouvrir un volet pour comparer le projet de base à une ou plusieurs variante(s). Le signe       permet de refermer ce(s) volet(s)"]

{"sheet":"Calcul et résultat","index":2,"n_rows":25,"n_cols":13,"rows_kept":25,"cut":false,"hidden":false,"merged":[[13,2,13,3],[13,1,14,1],[15,1,17,1],[18,1,20,1],[20,2,20,3],[19,2,19,3],[14,2,14,3],[15,2,15,3],[16,2,16,3],[17,2,17,3],[18,2,18,3],[12,2,12,3],[1,1,1,7],[9,2,9,3],[10,2,10,3],[11,2,11,3],[5,4,5,5],[10,1,11,1]]}
[]
[null,"CBS - Coefficient de potentiel de Biodiversité par Surface"]
[]
[null,"Données générales",null,null,"Résultats"]
[null,"Surface totale de la parcelle (m²)"]
[null,"Surface minéralisée",{"$f":"F11+F13+F14+F15+F16+F17+F18","v":0},null,"CBS du projet :",null,{"$f":"G25","v":{"$error":"#DIV/0!"}},null,"CBS variante 1:",{"$f":"J25","v":{"$error":"#DIV/0!"}},null,"CBS variante 2:",{"$f":"M25","v":{"$error":"#DIV/0!"}}]
[null,"Emprise au sol des surfaces minéralisées",{"$f":"IF(C5<>0,C6/C5,\"\")","v":""}]
[]
[null,"Données spécifiques au projet",null,null,null,null,null,null,"Variante 1",null,null,"Variante 2"]
[null,"Habitats","Type de surface",null,"Facteur de pondération","Superficie (m²)","Superficie pondérée (m²)",null,"Superficie (m²)","Superficie pondérée (m²)",null,"Superficie (m²)","Superficie pondérée (m²)"]
[null,"Zones en eau","Plan d'eau minéralisé",null,0.2,null,{"$f":"F11*$E11","v":0},null,null,{"$f":"I11*$E11","v":0},null,null,{"$f":"L11*$E11","v":0}]
[null,null,"Plan d'eau naturel",null,0.8,null,{"$f":"F12*$E12","v":0},null,null,{"$f":"I12*$E12","v":0},null,null,{"$f":"L12*$E12","v":0}]
[null,"Zones artificialisées imperméables","Surfaces artificielles",null,0,null,0,null,null,{"$f":"I13*$E13","v":0},null,null,0]
[null,"Aires (semi-)perméables","Pavages/Dallages à joints ouverts/Graviers",null,0.1,null,{"$f":"F14*$E14","v":0},null,null,{"$f":"I14*$E14","v":0},null,null,0]
[null,null,"Systèmes alvéolaires engazonnés",null,0.2,null,{"$f":"F15*$E15","v":0},null,null,{"$f":"I15*$E14","v":0},null,null,0]
[null,"Constructions végétalisées","Végétation sur dalle (ép. substrat 5 - 10 cm)",null,0.3,null,0,null,null,0,null,null,0]
[null,null,"Végétation sur dalle (ép. substrat 10 - 20 cm)",null,0.4,null,0,null,null,0,null,null,0]
[null,null,"Végétation sur dalle (ép. substrat > 20 cm)",null,0.5,null,0,null,null,0,null,null,0]
[null,"Espaces verts en pleine terre","Pelouse",null,0.6,null,0,null,null,0,null,null,0]
[null,null,"Massif de fleurs / Prairie fleurie / Potager pleine terre",null,0.8,null,0,null,null,0,null,null,0]
[null,null,"Zone arbustive et arborée/Haie",null,0.9,null,0,null,null,0,null,null,0]
[]
[null,null,null,null,"Total",{"$f":"SUM(F11:F21)","v":0},{"$f":"SUM(G11:G21)","v":0},null,{"$f":"SUM(I11:I21)","v":0},{"$f":"SUM(J11:J21)","v":0},null,{"$f":"SUM(L11:L21)","v":0},{"$f":"SUM(M11:M21)","v":0}]
[null,null,null,null,null,{"$f":"IF(F23>C5,\"Superficie totale supérieure à la superficie de la parcelle\",\" \")","v":" "},null,null,{"$f":"IF(I23>C5,\"Superficie totale supérieure à la superficie de la parcelle\",\" \")","v":" "},null,null,{"$f":"IF(L23>C5,\"Superficie totale supérieure à la superficie de la parcelle\",\" \")","v":" "}]
[null,null,null,null,null,"CBS du projet :",{"$f":"G23/C5","v":{"$error":"#DIV/0!"}},null,"CBS variante 1:",{"$f":"J23/C5","v":{"$error":"#DIV/0!"}},null,"CBS variante 2:",{"$f":"M23/C5","v":{"$error":"#DIV/0!"}}]